Date of Transaction,LA dept which incurred the expenditure,Beneficiary,Amount,VAT,Summary of the purpose of expenditure,Merchant Category
08/01/20,Department of the Deputy Chief Excutive Officer,WWW.MONEYCLAIM.GOV,105.00,,H02508,GOVERNMENT SERVICES-NOT ELSEWHERE CLASSIFIED
24/01/20,Department of the Deputy Chief Excutive Officer,WWW.SGN.CO.UK,960.00,,GAS DISCONNECTION,HOUSEHOLD APPLIANCE STORES
21/01/20,Department of the Deputy Chief Excutive Officer,VIVID HOUSING LTD,241.60,,RIA,BUSINESS SERVICES-NOT ELSEWHERE CLASSIFIED
23/01/20,Leisure & Community,AMZ GREENCT,-18.98,,REFUND FOR DAMAGED BAG,MISCELLANEOUS AND SPECIALTY RETAIL STORES
22/01/20,Leisure & Community,AMZNMKTPLACE,20.79,,SUPERVISOR TRAYS,MISCELLANEOUS AND SPECIALTY RETAIL STORES
22/01/20,Leisure & Community,AMZNMKTPLACE,26.53,,FINGER CONES,MISCELLANEOUS AND SPECIALTY RETAIL STORES
22/01/20,Leisure & Community,AMZNMKTPLACE,34.96,,CAT MEETING EQUIPMENT,MISCELLANEOUS AND SPECIALTY RETAIL STORES
21/01/20,Leisure & Community,THETRAINLINE.COM,79.77,,TRAVEL TO OMBUDSMAN COURSE,PASSENGER RAILWAYS
16/01/20,Leisure & Community,COPYRIGHT LICENSING AG,"1,065.02",,PUBLIC ADMIN LICENCE 2019,BUSINESS SERVICES-NOT ELSEWHERE CLASSIFIED
15/01/20,Leisure & Community,RUS,39.64,,STORAGE TRAYS,INDUSTRIAL SUPPLIES NOT ELSEWHERE CLASSIFIED
08/01/20,Leisure & Community,TITCHFIELD COMMUNITY C,119.70,,HIRE OF HALL FOR CAT MEETING,REAL ESTATE AGENTS AND MANAGERS-RENTALS
22/01/20,Planning & Regeneration,CASTLE (EU) LTD,582.53,,CLEANING SUPPLIES,INDUSTRIAL SUPPLIES NOT ELSEWHERE CLASSIFIED
15/01/20,Planning & Regeneration,HAMPSHIREFL,105.39,,FLAG,"FABRIC, NEEDLEWORK, PIECE GOODS, AND SEWING STORES"
02/01/20,Planning & Regeneration,CASTLE (EU) LTD,479.32,,CLEANING SUPPLIES,INDUSTRIAL SUPPLIES NOT ELSEWHERE CLASSIFIED
23/01/20,Department of the Deputy Chief Excutive Officer,PCS WEEDING TECHNOLOGI,18.86,,MACHINE KEYS,OTHER SERVICES (NOT ELSEWHERE CLASSIFIED)
17/01/20,Department of the Deputy Chief Excutive Officer,JRC VEHICLE REPAIR,40.00,,FUEL FLAP PAINT,AUTOMOTIVE SERVICE SHOPS
15/01/20,Department of the Deputy Chief Excutive Officer,THETRAINLINE.COM,46.70,,FLEET FORUM VISIT,PASSENGER RAILWAYS
27/01/20,Department of the Deputy Chief Excutive Officer,SHEPHERDS,8.21,,JOB NUMBER 128526,"BUILDING MATERIALS, LUMBER STORES"
20/01/20,Department of the Deputy Chief Excutive Officer,C BREWER & SONS,41.48,,JOB NUMBER 124853,"BUILDING MATERIALS, LUMBER STORES"
15/01/20,Department of the Deputy Chief Excutive Officer,PAYPAL  DJ RETAIL EBAY,36.76,,JOB NUMBER 128069,SPORTING GOODS STORES
10/01/20,Department of the Deputy Chief Excutive Officer,LC ONEDIRECT,269.08,,HEADSETS,BUSINESS SERVICES-NOT ELSEWHERE CLASSIFIED
06/01/20,Department of the Deputy Chief Excutive Officer,LAWSON H I S LTD,44.83,,HARDWARE EQUIPMENT AND SUPPLIES,HARDWARE EQUIPMENT AND SUPPLIES
09/01/20,Department of the Deputy Chief Excutive Officer,NEW FOREST FENCING LIM,94.00,,JOB NUMBER 127897,"CONTRACTORS,SPECIAL TRADE-NOT ELSEWHERE CLASSIFIED"
03/01/20,Department of the Deputy Chief Excutive Officer,LAWSON H I S LTD,44.83,,HARDWARE EQUIPMENT AND SUPPLIES,HARDWARE EQUIPMENT AND SUPPLIES
16/01/20,Streetscene,SWRAILWAY TCK OFF,9.80,,TRAIN TICKET,PASSENGER RAILWAYS
14/01/20,Streetscene,AMZNMKTPLACE,12.52,,DIARIES,MISCELLANEOUS AND SPECIALTY RETAIL STORES
14/01/20,Streetscene,HEDINGHAM FAIR,20.94,,MATERIALS RANGERS,"GIFT, CARD, NOVELTY AND SOUVENIR SHOPS"
08/01/20,Streetscene,AMZNMKTPLACE,9.90,,DIARIES,MISCELLANEOUS AND SPECIALTY RETAIL STORES
07/01/20,Streetscene,WWW.HAYMARKET.COM,137.50,,HORTICULTURAL MAG,"ORGANIZATIONS, MEMBERSHIP-NOT ELSEWHERE CLASSIFIED"
31/12/19,Leisure & Community,FACEBK  BV9FYNEAA2,4.03,,FACEBOOK BOOST,ADVERTISING SERVICES
08/01/20,Support Services,AMAZON.CO.UK II5FR2JJ5,32.48,,GRAPHICS CARD,DIRECT MARKETING-OTHER DIRECT MARKETERS/NOT ELSEW.
07/01/20,Support Services,AMZNMKTPLACE AMAZON.CO,7.49,,MOBILE PHONE CABLE,MISCELLANEOUS AND SPECIALTY RETAIL STORES
23/01/20,Department of the Deputy Chief Excutive Officer,WWW ESPARES CO UK,7.20,,LIGHTING ORDERED,ELECTRICAL PARTS AND EQUIPMENT
22/01/20,Department of the Deputy Chief Excutive Officer,ASPHALTIC ROOFING,36.83,,ROOF TILES,INDUSTRIAL SUPPLIES NOT ELSEWHERE CLASSIFIED
16/01/20,Department of the Deputy Chief Excutive Officer,FORMERTON,87.39,,ROOFING TILES,INDUSTRIAL SUPPLIES NOT ELSEWHERE CLASSIFIED
02/01/20,Department of the Deputy Chief Excutive Officer,C BREWER & SONS,84.86,,MATERIALS,"BUILDING MATERIALS, LUMBER STORES"
21/01/20,Leisure & Community,SHOE ZONE,10.04,,WORK CLOTHING,SHOE STORES
02/01/20,Leisure & Community,WH SMITH,3.99,,DECOMMISSIONING EQUIPMENT,NEWS DEALERS AND NEWSSTANDS
06/01/20,Streetscene,SAINSBURYS SACAT 0681,13.50,,BATTERIES FOR TORCHES,"GROCERY STORES, SUPERMARKETS"
22/01/20,Leisure & Community,RUSHMOOR BC MOTO,150.00,,DOG COURSE,GOVERNMENT SERVICES-NOT ELSEWHERE CLASSIFIED
16/01/20,Leisure & Community,AMZNMKTPLACE AMAZON.CO,178.57,,ALLERGY MASKS + FOOTSTOOL,MISCELLANEOUS AND SPECIALTY RETAIL STORES
18/01/20,Leisure & Community,AMZNMKTPLACE,18.78,,LED FLASHLIGHT,MISCELLANEOUS AND SPECIALTY RETAIL STORES
19/01/20,Department of the Deputy Chief Excutive Officer,BROADCUT,61.99,,TRIPLE CORDLESS,DISCOUNT STORES
10/01/20,Department of the Deputy Chief Excutive Officer,BROADCUT,23.33,,G/R LAMPS,DISCOUNT STORES
08/01/20,Department of the Deputy Chief Excutive Officer,CURRYS S/S,29.99,,USB FOR CCTV,HOUSEHOLD APPLIANCE STORES
03/01/20,Department of the Deputy Chief Excutive Officer,CO-OP GROUP 070635,4.20,,BATTERIES FOR SAFE,"GROCERY STORES, SUPERMARKETS"
03/01/20,Department of the Deputy Chief Excutive Officer,CO-OP GROUP 070635,4.20,,BATTERIES FOR SAFE,"GROCERY STORES, SUPERMARKETS"
08/01/20,Department of the Deputy Chief Excutive Officer,SWRAILWAY TCK OFF,4.90,,PARKING,PASSENGER RAILWAYS
08/01/20,Department of the Deputy Chief Excutive Officer,SWRAILWAY TCK OFF,53.80,,2X TCKTS,PASSENGER RAILWAYS
06/01/20,Department of the Deputy Chief Excutive Officer,PRESSING NEEDS LTD,125.00,,DRY CLEANERS,DRY CLEANERS
02/01/20,Department of the Deputy Chief Excutive Officer,HOLIDAY INN FAREHA,408.33,,"LODGING-HOTELS,MOTELS,RESORTS-NOT CLASSIFIED","LODGING-HOTELS,MOTELS,RESORTS-NOT CLASSIFIED"
28/12/19,Department of the Deputy Chief Excutive Officer,HOLIDAY INN FAREHA,86.67,,HOMELESSNESS,"LODGING-HOTELS,MOTELS,RESORTS-NOT CLASSIFIED"
21/01/20,Planning & Regeneration,AMZNMKTPLACE,6.98,,CALENDAR,MISCELLANEOUS AND SPECIALTY RETAIL STORES
20/01/20,Planning & Regeneration,PAYPAL  RTPI,38.25,,RTPI COURSE,"ORGANIZATIONS, CHARITABLE AND SOCIAL SERVICES"
20/01/20,Planning & Regeneration,PAYPAL  RTPI,46.75,,RTPI COURSE,"ORGANIZATIONS, CHARITABLE AND SOCIAL SERVICES"
20/01/20,Planning & Regeneration,PAYPAL  RTPI,76.50,,RTPI COURSE,"ORGANIZATIONS, CHARITABLE AND SOCIAL SERVICES"
20/01/20,Planning & Regeneration,PAYPAL  RTPI,76.50,,RTPI COURSE,"ORGANIZATIONS, CHARITABLE AND SOCIAL SERVICES"
20/01/20,Planning & Regeneration,PAYPAL  RTPI,46.75,,RTPI COURSES BOOKED,"ORGANIZATIONS, CHARITABLE AND SOCIAL SERVICES"
09/01/20,Planning & Regeneration,WWW.ARCO.CO.UK,17.44,,PPE,INDUSTRIAL SUPPLIES NOT ELSEWHERE CLASSIFIED
10/01/20,Support Services,AMZNMKTPLACE AMAZON.CO,16.98,,IPAD CASE/PROTECTOR,MISCELLANEOUS AND SPECIALTY RETAIL STORES
20/01/20,Department of the Deputy Chief Excutive Officer,ARCO LTD,76.87,,CLOTHING,INDUSTRIAL SUPPLIES NOT ELSEWHERE CLASSIFIED
27/01/20,Planning & Regeneration,PRESSING NEEDS LTD,15.87,,CLEANING CLOTH WASH,DRY CLEANERS
23/01/20,Planning & Regeneration,B M RETAIL,3.99,,SCHOOL VISIT SUPPLIES,DISCOUNT STORES
15/01/20,Planning & Regeneration,WILKO RETAIL LIMITED,3.12,,TOILETS AIR NEUTRALISER,MISCELLANEOUS GENERAL MERCHANDISE
13/01/20,Planning & Regeneration,PRESSING NEEDS LTD,15.87,,CLEANING CLOTH WASH,DRY CLEANERS
10/01/20,Planning & Regeneration,TESCO-STORES 6255,1.60,,MAYOR PARLOUR SUPPLIES,"GROCERY STORES, SUPERMARKETS"
07/01/20,Planning & Regeneration,TESCO-STORES 6255,73.27,,MAYOR PARLOUR SUPPLIES,"GROCERY STORES, SUPERMARKETS"
24/01/20,Department of the Deputy Chief Excutive Officer,RINGGO PARKING,2.42,,CAR PARKING,AUTOMOBILE PARKING LOTS AND GARAGES
06/01/20,Department of the Deputy Chief Excutive Officer,WILKO RETAIL LIMITED,23.33,,KETTLE AND KITCHEN SUPPLIES,MISCELLANEOUS GENERAL MERCHANDISE
26/01/20,Support Services,AMZNMKTPLACE AMAZON.CO,68.62,,IPHONE CASES,MISCELLANEOUS AND SPECIALTY RETAIL STORES
26/01/20,Support Services,AMZNMKTPLACE AMAZON.CO,20.79,,SCREEN PROTECTORS,MISCELLANEOUS AND SPECIALTY RETAIL STORES
24/01/20,Support Services,AMZNMKTPLACE AMAZON.CO,24.96,,IPHONE CHARGERS,MISCELLANEOUS AND SPECIALTY RETAIL STORES
23/01/20,Support Services,SMARTCARD,60.90,,MAGICARD RIBBON,OFFICE PHOTOGRAPHIC PHOTOCOPY & MICROFILM EQUIPMT.
22/01/20,Support Services,AMZNMKTPLACE AMAZON.CO,70.82,,PRINTER FOR SHELTERED HOUSING,MISCELLANEOUS AND SPECIALTY RETAIL STORES
15/01/20,Support Services,AMZNMKTPLACE,70.82,,PRINTER FOR SHELTERED HOUSING,MISCELLANEOUS AND SPECIALTY RETAIL STORES
13/01/20,Support Services,AMAZON.CO.UK SQ9EH1AO5,20.37,,USB STICKS,DIRECT MARKETING-OTHER DIRECT MARKETERS/NOT ELSEW.
12/01/20,Support Services,AMAZON.CO.UK 690PK8IK5,34.95,,WIRELESS KEYBOARD/MOUSE COMBO,DIRECT MARKETING-OTHER DIRECT MARKETERS/NOT ELSEW.
10/01/20,Support Services,AMZNMKTPLACE,9.91,,SD CARD READER,MISCELLANEOUS AND SPECIALTY RETAIL STORES
06/01/20,Support Services,FLYBE.COM P72A8J       0,58.00,,LUGGAGE,"AIR CARRIERS, AIRLINES-NOT ELSEWHERE CLASSIFIED"
22/01/20,Planning & Regeneration,NEW SOUTHERN RAILW,35.40,,WELBORNE MEETING,PASSENGER RAILWAYS
21/01/20,Planning & Regeneration,SWRAILWAY TCK OFF,81.50,,WELBORNE MEETING,PASSENGER RAILWAYS
03/01/20,Leisure & Community,ICELAND,1.48,,BAR SUPPLIES,"GROCERY STORES, SUPERMARKETS"
05/01/20,Leisure & Community,TESCO-STORES 6255,1.50,,BAR SUPPLIES,"GROCERY STORES, SUPERMARKETS"
30/12/19,Leisure & Community,BESTWAY WHOLESALE,233.71,,BAR SUPPLIES,DAIRY PRODUCTS STORES
28/12/19,Leisure & Community,BESTWAY WHOLESALE,278.72,,BAR SUPPLIES,DAIRY PRODUCTS STORES
15/01/20,Support Services,WILKO RETAIL LIMITED,26.12,,ITEMS FOR OFFICE,MISCELLANEOUS GENERAL MERCHANDISE
10/01/20,Support Services,HR INNER CIRCLE,103.20,,INNER CIRCLE SUBS,"ORGANIZATIONS, MEMBERSHIP-NOT ELSEWHERE CLASSIFIED"
01/01/20,Support Services,INDEED TEL+35312545907,350.25,,JOB ADS,BUSINESS SERVICES-NOT ELSEWHERE CLASSIFIED
23/01/20,Department of the Deputy Chief Excutive Officer,THETRAINLINE.COM,19.99,,RAIL TICKET,PASSENGER RAILWAYS
21/01/20,Department of the Deputy Chief Excutive Officer,THETRAINLINE.COM,83.13,,RAIL TICKET,PASSENGER RAILWAYS
20/01/20,Department of the Deputy Chief Excutive Officer,THETRAINLINE.COM,-3.90,,OPTIONS RAIL REFUND,PASSENGER RAILWAYS
17/01/20,Department of the Deputy Chief Excutive Officer,THETRAINLINE.COM,6.26,,OPTIONS CLIENT RAIL TICKET,PASSENGER RAILWAYS
15/01/20,Department of the Deputy Chief Excutive Officer,TRAINLINE,-6.50,,RAIL TRAVEL REFUND,PASSENGER RAILWAYS
13/01/20,Department of the Deputy Chief Excutive Officer,THETRAINLINE.COM,90.86,,RAIL TRAVEL,PASSENGER RAILWAYS
10/01/20,Department of the Deputy Chief Excutive Officer,THETRAINLINE.COM,7.78,,TRAVEL,PASSENGER RAILWAYS
08/01/20,Department of the Deputy Chief Excutive Officer,BRITISH GAS OTP,49.00,,GAS TOP UP,"UTLTS-ELCTRC, GAS, HEATING OIL, SANITARY, WATER"
08/01/20,Department of the Deputy Chief Excutive Officer,BRITISH GAS OTP,49.00,,ELECTRICITY TOP UP,"UTLTS-ELCTRC, GAS, HEATING OIL, SANITARY, WATER"
07/01/20,Department of the Deputy Chief Excutive Officer,TRAINLINE,6.26,,OPTIONS CUSTOMER RAIL TRAVEL,PASSENGER RAILWAYS
